{"text_format":"3","workbook":"xlsx","n_sheets":2,"sheets":["Rekapitulacija","Ponudbeni predračun"],"not_rendered":{"images":1,"defined_names":1},"read":"whole","date_system":"1900"}

{"sheet":"Rekapitulacija","index":0,"n_rows":18,"n_cols":9,"rows_kept":18,"merged":[[1,0,1,8]]}
[]
["ZAMENJAVA OBSTOJEČEGA ZUNANJEGA STAVBNEGA POHIŠTVA IN SENČIL NA OBJEKTU C IN D - IJS"]
[]
[{"$nulls":8},"SKUPAJ"]
["C","Objekt C",{"$nulls":6},{"$f":"'Ponudbeni predračun'!F270","v":{"v":0,"d":"0.00"}}]
["D","Objekt D - delavnice",{"$nulls":6},{"$f":"'Ponudbeni predračun'!F384","v":{"v":0,"d":"0.00"}}]
[]
["C + D","Skupaj C + D  (€)",{"$nulls":6},{"$f":"I5+I6","v":{"v":0,"d":"0.00"}}]
[null,"22% DDV (€)",{"$nulls":6},{"$f":"I8*0.22","v":{"v":0,"d":"0.00"}}]
[null,"Skupaj C + D z DDV (€)",{"$nulls":6},{"$f":"I8+I9","v":{"v":0,"d":"0.00"}}]
[]
["E","Nepredvidena dela",null,{"v":0.03,"d":"3%"},{"$nulls":4},{"$f":"I8*D12","v":{"v":0,"d":"0.00"}}]
[null,"22% DDV",{"$nulls":6},{"$f":"I12*0.22","v":{"v":0,"d":"0.00"}}]
[null,"SKUPAJ E z DDV",{"$nulls":6},{"$f":"I12+I13","v":{"v":0,"d":"0.00"}}]
[]
["C + D + E","SKUPAJ C + D + E",{"$nulls":6},{"$f":"I12+I8","v":{"v":0,"d":"0.00"}}]
[null,"22% DDV",{"$nulls":6},{"$f":"I16*0.22","v":{"v":0,"d":"0.00"}}]
[null,"SKUPAJ C + D + E z DDV",{"$nulls":6},{"$f":"I16+I17","v":{"v":0,"d":"0.00"}}]

{"sheet":"Ponudbeni predračun","index":1,"n_rows":393,"n_cols":7,"rows_kept":393,"merged":[[0,0,0,5],[1,0,1,5],[3,0,3,5],[5,0,5,5],[6,0,6,5],[7,0,7,5],[8,0,8,5],[9,0,9,5],[10,0,10,5],[11,0,11,5]]}
["ZAMENJAVA OBSTOJEČEGA ZUNANJEGA STAVBNEGA POHIŠTVA IN SENČIL NA OBJEKTU C IN D"]
["INŠTITUT JOŽEF STEFAN, JAMOVA ULICA 39, 1000 LJUBLJANA"]
[]
["SPLOŠNI OPIS ZA ZUNANJE STAVBNO POHIŠTVO:"]
[]
["Poleg izpolnjevanja in izvajanja zahtev iz razpisne dokumentacije je dolžan ponudnik izvajalec upoštevati tudi sledeče zahteve naročnika:"]
["Dimenzije  in sheme oken iz razpisne dokumentacije so informativne narave. Dimenzije od priloženih shem in popisov lahko odstopajo do 10 cm. V okviru odstopanj dejanskih dimenzij v okviru maksimalno dovoljenega v eni smeri se cena stavbnega pohištva ne sme spremeniti. Ponudnik - izvajalec je dolžan pred posredovanjem ponudbe izvesti ponovno izmero stavbnega pogištva vključno z notranjimi in zunanjimi policami. Oblika in postavitev novega stavbnega pohištva mora biti usklajena z obstoječim stanjem. Pred izvedbo del je izvajalec dolžan predložiti predstavniku naročnika in nadzora dejanske izvedbene sheme novih oken in delavniške načrte z vsemi dejanskimi elementi v pregled in potrditev. Naročnik si do končne potrditve izvajalčevih dejanskih shem pridružuje pravico do sprememb količin ter da nekaterih senčil in oken ne bo vgradil. Požarna vrata na požarnih izhodih morajo biti izvedene skladno s požarnovarnostnimi predpisi. Na vhodnih vratih v objekt je potrebno vgraditi samozapirala in možnost zaskočitve vratnega krila. Izvajalec je dolžan glede na dejansko stanje izvesti prezračevalne preboje skozi nekatera okna. Okna v kletnih prostorih morajo imeti možnost zračenja skozi okenski okvir z rekuperacijo odpadnega zraka. "]
["V ceni vseh postavk so zajeta vsa dela, prenosi, prevozi na objekte, ves osnovni, pomožni, tesnilni in sidrni material po opisih v postavkah za vse gotove vgrajene elemente. Izvesti je potrebno vse ukrepe za zaščito transportnih poti do mesta demontaže starega in vgradnje novega stavbneg pohištva. V cenah je potrebno zajeti tudi eventuelno uporabo fasadnih ali pomičnih odrov. Izvajalec je dolžan izvajanje del usklajevati z naročnikom. Naročniku mora omogočiti nemoteno izvajanje njegove dejavnosti. Pri zamenjavi stavbnega pohištva ne sme poškodovati konstrukcij, finalnih oblog ali ostalega pohištva v objektu. Zagotovljeno mora biti sprotno in končno čiščenje po končanih delih. V primeru, da izvajalec ne bo upošteval opozorila naročnika ali nadzora glede ustreznosti  čiščenja objekta bo le tega izvedel naročnik z upoštevanjem stroškov pri obračunu izvajalčevih del. Pri rušitvenih in odstranitvenih delih mora izvajalec izvjati vse ukrepe skladno po Uredbi o ravnanju z odpadki, ki nastanejo pri gradbenih delih Ur.l. RS št.: 34/2008."]
["V končni ceni izdelka upoštevati vsa potrebna gradbeno obrtniška dela kompletno s končnim čiščenjem po končanih delih in predajo prostorov naročniku. Pri prekritju stikov stavbnega pohištva na fasadnih špaletah upoštevati prekrivne letvice v kvaliteti stavbnega pohištva."]
["Dela v prostorih ARNES in F2 (soba C118) je dolžan izvajalec uskladiti s predstavnikom uporabnika tako glede časovnega okvirja za izvedbo del, kakor tudi vseh potrebnih ukrepov za zaščito in varovanje prostor med izvajnjem del."]
["Pri zamenjavi stavbnega pohištva na objektu D bo izvajalec po demontaži oken uskladil termine montaže novih s predstavnikom uporabnika. Uporabnik bo po demontaži oken v lastni režiji izvedel sanacijo in zaščito jeklene konstrukcije objekta. V mehanični delavnici je potrebno upoštevati odpiranje oken na ventus vsaj 40 cm. Odpiranje oken na ventus urediti na elektro pogon. Žaluzije oken v mehanični delavnici dimenzij 2 x 2 m in 2,5 x 2 m urediti na elektro pogon."]
["Pri vgradnji stavbnega pohištva je potrebno posebno pozornost posvetiti tesnenju s ciljem, da se prepreči možnosti gnezdenja insektov in ptic."]
[]
[null,"Popis del","enota","količina ","cena / enoto","vrednost postavke","opomba"]
[]
["A:","Objekt C: "]
[]
["1. ","Demontaža obstoječih lesenih, PVC, Alu ali Alu clip oken in vrat z zunanjimi žaluzijami z vsemi potrebnimi deli, transporti ter odvozov v stalni depo skladno po Uredbi z ravnanji z gradbenimi odpadki, plačili taks za prevzem in predelavo."]
[null,null,"kom",338,{"v":0,"d":"0.00"},{"$f":"D19*E19","v":{"v":0,"d":"0.00"}}]
[]
[]
["2.","Demontaža notranjih okenskih polic širine do 30 cm, dolžine od 60 do 210 cm z vsemi potrebnimi deli, transporti ter odvozov v stalni depo skladno po Uredbi z ravnanji z gradbenimi odpadki, plačili taks za prevzem in predelavo. Ocenjena količina 30 %."]
[null,null,"kom",113,{"v":0,"d":"0.00"},{"$f":"D23*E23","v":{"v":0,"d":"0.00"}}]
[]
["3.","Demontaža zunanjih okenskih polic širine do 20 cm  dolžine od 60 do 210 cm z vsemi potrebnimi deli, transporti ter odvozov v stalni depo skladno po Uredbi z ravnanji z gradbenimi odpadki, plačili taks za prevzem in predelavo. Ocenjena količina 30 %."]
[null,null,"kom",113,{"v":0,"d":"0.00"},{"$f":"D26*E26","v":{"v":0,"d":"0.00"}}]
[]
["4.","Dobava in montaža PVC oken bele ali svetlo sive barve po izboru naročnika. Minimalno število komor v okvirju in krilu 6 ali več visoke statične stabilnosti in toplotne izolativnosti. Zasteklitev iz troslojnega toplotno izolacijskega stekla z nizkoemisijskim nanosom in toplotno izolacijskim distančnikom. Tesnenje med okenskim okvirjem in krilom minimalno  tremi trajno elastičnimi fiksno vpetimi in stikoma varjenimi  tenili. Enoročna manipulacija skritega okovja mora omogočati odpiranje po vertikalni in horizontalni osi skladno po shemah. Okovje protivlomno z večtočkovnim zapiranjem in pollolivo v barvi oken. Okna tipa 2x1, 2x2 in 3x2 imajo med okenskimi okvirji termoizolacijski panel (masko) iz identičnega materiala in karakteristik kot okenski okvir ali krila."]
[null,"Izolativnost oken UW = 0,9 W/m2/K ali manj. "]
[null,"Toplotna prehodnost stekla Ug = 0,6 W/m2/K ali manj. "]
[null,"Zvočna izolativnost okna RW = 35 dB ali več ."]
[null,"Pri postavki posameznega tipa okna kjer je navedeno je potrebno dobaviti in vgraditi zunanje žaluzije kompletno z vodili, masko in notranjim ročnim mehnizmom za upravljanje. Barva zunanjih žaluzij v RALu kot obstoječe (svetlo siva) oziroma po potrditvi naročnika."]
[]
[]
["4.1","KGA_Window_IJS_1x1"]
[null,"1.1  dimenzije 55 x 55 cm","kom",4,{"v":0,"d":"0.00"},{"$f":"D36*E36","v":{"v":0,"d":"0.00"}}]
[null,"1.2 dimenzije 60 x 62 cm","kom",24,{"v":0,"d":"0.00"},{"v":0,"d":"0.00"}]
[null,"1.6 dimenzije 103 x 100 cm ","kom",16,{"v":0,"d":"0.00"},{"v":0,"d":"0.00"}]
[null,"žaluzije 103 x 100 cm","kom",16,{"v":0,"d":"0.00"},{"v":0,"d":"0.00"}]
[]
["4.2","KGA_Window_IJS_1x2"]
[null,"2.3  dimenzije 83 x 229 cm","kom",2,{"v":0,"d":"0.00"},{"$f":"D42*E42","v":{"v":0,"d":"0.00"}}]
[null,"2.7 dimenzije 89 x 197 cm","kom",5,{"v":0,"d":"0.00"},{"v":0,"d":"0.00"}]
[null,"2.12 dimenzije 116 x 195 cm ","kom",2,{"v":0,"d":"0.00"},{"v":0,"d":"0.00"}]
[null,"žaluzije 116 X 195 cm","kom",2,{"v":0,"d":"0.00"},{"v":0,"d":"0.00"}]
[]
["4.3","KGA_Window_IJS_2x1"]
[null,"3.1 dimenzije 197 x 76 cm","kom",5,{"v":0,"d":"0.00"},{"$f":"D48*E48","v":{"v":0,"d":"0.00"}}]
[null,"3.3 dimenzije 199 x 118 cm","kom",6,{"v":0,"d":"0.00"},{"v":0,"d":"0.00"},"fiksna zasteklitev"]
[null,"roleta 116 x 195 cm","kom",6,{"v":0,"d":"0.00"},{"v":0,"d":"0.00"}]
[null,"elektro pogon žaluzij","kom",6,{"v":0,"d":"0.00"},{"$f":"D51*E51","v":{"v":0,"d":"0.00"}}]
[null,"3.4 dimenzije 199 x 118","kom",1,{"v":0,"d":"0.00"},{"v":0,"d":"0.00"},"polnilo v barvi in kvaliteti okvirja"]
[]
[]
[]
[]
[]
["4.4","KGA_Window_IJS_2x2"]
[null,"4.3  dimenzije 161 x 195 cm","kom",1,{"v":0,"d":"0.00"},{"$f":"D59*E59","v":{"v":0,"d":"0.00"}}]
[null,"žaluzije 161x195 cm","kom",1,{"v":0,"d":"0.00"},{"v":0,"d":"0.00"}]
[null,"4.8 dimenzije 178 x 188 cm","kom",7,{"v":0,"d":"0.00"},{"v":0,"d":"0.00"}]
[null,"žaluzije 178 x 188cm","kom",7,{"v":0,"d":"0.00"},{"v":0,"d":"0.00"}]
[null,"4.9 dimenzije 188 x 210 cm ","kom",1,{"v":0,"d":"0.00"},{"v":0,"d":"0.00"}]
[null,"žaluzije 188 x 210 cm","kom",1,{"v":0,"d":"0.00"},{"v":0,"d":"0.00"}]
[null,"4.10 dimenzije 197 x 188 cm","kom",4,{"v":0,"d":"0.00"},{"v":0,"d":"0.00"}]
[null,"žaluzije 197 x 188 cm","kom",4,{"v":0,"d":"0.00"},{"v":0,"d":"0.00"}]
[null,"4.11 dimenzije 198 x 216 cm","kom",6,{"v":0,"d":"0.00"},{"v":0,"d":"0.00"}]
[null,"žaluzije 109 x 216 cm","kom",6,{"v":0,"d":"0.00"},{"v":0,"d":"0.00"}]
[null,"4.12 dimenzije 198 x 200 cm","kom",3,{"v":0,"d":"0.00"},{"v":0,"d":"0.00"}]
[null,"žaluzije 198 x 200 cm","kom",3,{"v":0,"d":"0.00"},{"v":0,"d":"0.00"}]
[null,"4.13 samo žaluzije dimenzije 100 x 171 na elektro pogon","kom",2,{"v":0,"d":"0.00"},{"v":0,"d":"0.00"},"samo žaluzije"]
[null,"4.14 dimenzije 200 x 196 cm","kom",6,{"v":0,"d":"0.00"},{"v":0,"d":"0.00"}]
[null,"4.16 dimenzije 204 x 195 cm","kom",64,{"v":0,"d":"0.00"},{"v":0,"d":"0.00"}]
[null,"žaluzije 204 x 195 cm","kom",64,{"v":0,"d":"0.00"},{"v":0,"d":"0.00"}]
[null,"4.16 dimenzije 204 x 195 cm","kom",1,{"v":0,"d":"0.00"},{"$f":"D75*E75","v":{"v":0,"d":"0.00"}},"prostor C118, izvedba s protiprašno zaveso"]
[null,"žaluzije 204 x 195 cm","kom",1,{"v":0,"d":"0.00"},{"v":0,"d":"0.00"},"prostor C118, izvedba s protiprašno zaveso"]
[null,"4.17 dimenzije 204 x 199 cm ","kom",7,{"v":0,"d":"0.00"},{"v":0,"d":"0.00"}]
[null,"žaluzije 204 x 199 cm","kom",7,{"v":0,"d":"0.00"},{"v":0,"d":"0.00"}]
[null,"4.18 dimenzije 209 x 213 cm","kom",8,{"v":0,"d":"0.00"},{"v":0,"d":"0.00"}]
[null,"4.19 dimenzije 209 x 257 cm","kom",7,{"v":0,"d":"0.00"},{"v":0,"d":"0.00"}]
[null,"4.19B dimenzije 209 x 257 cm ","kom",1,{"v":0,"d":"0.00"},{"v":0,"d":"0.00"}]
[null,"žaluzija 209 x 257 cm","kom",1,{"v":0,"d":"0.00"},{"v":0,"d":"0.00"}]
[]
["5.","Dobava in montaža PVC zastekljenih balkonskih vrat bele ali svetlo sive barve po izboru naročnika v stekleni steni skladno po shemi. Minimalno število komor 6 ali več visoke statične stabilnosti in toplotne izolativnosti. Troslojna zasteklitev identično kot je navedeno v postavki 4. "]
[null,"Spodnja zastekljena polnila izvedena z varnostnim steklom. Okovje protivlomno z večtočkovnim zapiranjem in pollolivo (kljuko) v barvi oken. "]
[null,"Toplotna prehodnost stekla Ug = 0,6 W/m2/K ali manj. "]
[null,"Zvočna izolativnost okna RW = 35 dB ali več ."]
[]
["5.1","KGA_Window_IJS_2x2_ z balkonskimi vratai"]
[null,"5.1 dimenzije 202 x 283 cm","kom",3,{"v":0,"d":"0.00"},{"$f":"D90*E90","v":{"v":0,"d":"0.00"}},"vrata naj se odpirajo tudi na ventus"]
[null,"5.2 dimenzije 428 x 354 cm","kom",1,{"v":0,"d":"0.00"},{"v":0,"d":"0.00"}]
[]
[]
["6.","Dobava in montaža ALU CLIP oken bele ali svetlo sive barve po izboru naročnika. Minimalno število komor v okvirju in krilu 6 ali več visoke statične stabilnosti in toplotne izolativnosti. Zasteklitev iz troslojnega toplotno izolacijskega stekla z nizkoemisijskim nanosom in toplotno izolacijskim distančnikom. Tesnenje med okenskim okvirjem in krilom minimalno  tremi trajno elastičnimi fiksno vpetimi in stikoma varjenimi  tenili. Enoročna manipulacija skritega okovja mora omogočati odpiranje po vertikalni in horizontalni osi skladno po shemah. Okovje protivlomno z večtočkovnim zapiranjem in pollolivo v barvi oken. Okna tipa 2x1, 2x2 in 3x2 imajo med okenskimi okvirji termoizolacijski panel (masko) iz identičnega materiala in karakteristik kot okenski okvir ali krila."]
[null,"Izolativnost oken UW = 0,9 W/m2/K ali manj. "]
[null,"Toplotna prehodnost stekla Ug = 0,6 W/m2/K ali manj. "]
[null,"Zvočna izolativnost okna RW = 35 dB ali več ."]
[null,"Pri postavki posameznega tipa okna kjer je navedeno je potrebno dobaviti in vgraditi zunanje žaluzije kompletno z vodili, masko in notranjim ročnim mehnizmom za upravljanje. Barva zunanjih žaluzij v RALu kot obstoječe oziroma po potrditvi naročnika."]
[]
["6.1","KGA_Window_IJS_1x2"]
[null,"2.4 dimenzije 88 x 200 cm ","kom",1,{"v":0,"d":"0.00"},{"$f":"D101*E101","v":{"v":0,"d":"0.00"}}]
[null,"žaluzije 88 x 200 cm","kom",1,{"v":0,"d":"0.00"},{"v":0,"d":"0.00"}]
[null,"2.6 dmenzije 88 x 219 cm ","kom",1,{"v":0,"d":"0.00"},{"v":0,"d":"0.00"}]
[null,"žaluzije 88 x 219 cm","kom",1,{"v":0,"d":"0.00"},{"v":0,"d":"0.00"}]
[]
["6.2","KGA_Window_IJS_2x2"]
[null,"4.1 dimenzije 158 x 218 cm ","kom",1,{"v":0,"d":"0.00"},{"$f":"D107*E107","v":{"v":0,"d":"0.00"}}]
[null,"žaluzija 158 x 218 cm","kom",1,{"v":0,"d":"0.00"},{"v":0,"d":"0.00"}]
[null,"4.14A dimenzije 200 x 196 cm ","kom",2,{"v":0,"d":"0.00"},{"v":0,"d":"0.00"}]
[null,"žaluzija 200 x 196 cm","kom",2,{"v":0,"d":"0.00"},{"v":0,"d":"0.00"}]
[null,"4.19A dimenzije 209 x 257 cm ","kom",12,{"v":0,"d":"0.00"},{"v":0,"d":"0.00"}]
[null,"žaluzija 209 x 257 cm","kom",12,{"v":0,"d":"0.00"},{"v":0,"d":"0.00"}]
[null,"4.21 dimenzije 209 x 176 cm","kom",9,{"v":0,"d":"0.00"},{"v":0,"d":"0.00"}]
[null,"žaluzija 209 x 176 cm","kom",9,{"v":0,"d":"0.00"},{"v":0,"d":"0.00"}]
[null,"4.21A dimenzije 209 x 176 cm ","kom",2,{"v":0,"d":"0.00"},{"v":0,"d":"0.00"}]
[null,"žaluzija 209 x 176 cm","kom",2,{"v":0,"d":"0.00"},{"v":0,"d":"0.00"},"ločeni senčili"]
[null,"4.22 dimenzije 209 x 210 cm z žaluzijami ","kom",12,{"v":0,"d":"0.00"},{"v":0,"d":"0.00"}]
[null,"žaluzije 209 x 210 cm","kom",12,{"v":0,"d":"0.00"},{"v":0,"d":"0.00"}]
[]
["6.3","KGA_Window_IJS_4x1"]
[null,"7.2 dimenzije 384 x 121 cm ","kom",1,{"v":0,"d":"0.00"},{"$f":"D121*E121","v":{"v":0,"d":"0.00"}}]
[null,"žaluzije 384 x 121 cm ","kom",1,{"v":0,"d":"0.00"},{"v":0,"d":"0.00"}]
[null,"7.4 dimenzije 431 x 121 cm ","kom",1,{"v":0,"d":"0.00"},{"v":0,"d":"0.00"}]
[null,"žaluzije 431 x 121 cm","kom",1,{"v":0,"d":"0.00"},{"v":0,"d":"0.00"}]
[null,"7.7 dimenzije 456 x 121 cm ","kom",1,{"v":0,"d":"0.00"},{"v":0,"d":"0.00"}]
[null,"žaluzije 456 x 121 cm","kom",1,{"v":0,"d":"0.00"},{"v":0,"d":"0.00"}]
[null,"7.8 dimenzije 456 x 121 cm ","kom",1,{"v":0,"d":"0.00"},{"v":0,"d":"0.00"}]
[null,"žaluzije 456 x 121 cm","kom",1,{"v":0,"d":"0.00"},{"v":0,"d":"0.00"}]
[]
["6.4","Polkrožno okno - foto atalje"]
[null,"17.1 dimenzije 710 x 208 cm","kom",1,{"v":0,"d":"0.00"},{"$f":"D131*E131","v":{"v":0,"d":"0.00"}},"trmoreflektivna folija"]
[null,"žaluzije 710 x 208 cm","kom",1,{"v":0,"d":"0.00"},{"$f":"D132*E132","v":{"v":0,"d":"0.00"}},"notranje žaluzije"]
[]
["7.","Dobava in montaža ALU oken bele ali svetlo sive barve po izboru naročnika. Okvirji in krila z vstavljenim dodatnim izolacijskim materialom ter prekinjenim toplotnim členom. Zasteklitev iz troslojnega toplotno izolacijskega stekla z nizkoemisijskim nanosom in toplotno izolacijskim distančnikom. Tesnenje med okenskim okvirjem in krilom minimalno  tremi trajno elastičnimi fiksno vpetimi in stikoma varjenimi  tenili. Enoročna manipulacija skritega okovja mora omogočati odpiranje po vertikalni in horizontalni osi skladno po shemah. Okovje protivlomno z večtočkovnim zapiranjem in pollolivo v barvi oken. Okna tipa 2x1, 2x2 in 3x2 imajo med okenskimi okvirji termoizolacijski panel (masko) iz identičnega materiala in karakteristik kot okenski okvir ali krila."]
[null,"Izolativnost oken UW = 1,0 W/m2/K ali manj. "]
[null,"Toplotna prehodnost stekla Ug = 0,6 W/m2/K ali manj. "]
[null,"Zvočna izolativnost okna RW = 35 dB ali več ."]
[null,"Pri postavki posameznega tipa okna kjer je navedeno je potrebno dobaviti in vgraditi zunanje žaluzije kompletno z vodili, masko in notranjim ročnim mehnizmom za upravljanje. Barva zunanjih žaluzij v RALu kot obstoječe oziroma po potrditvi naročnika."]
[]
["7.1","KGA_Window_IJS_1x1"]
[null,"1.3 dimenzije 65 x 65 cm","kom",15,{"v":0,"d":"0.00"},{"$f":"D141*E141","v":{"v":0,"d":"0.00"}}]
[null,"1.4 dimenzije 93 x 43 cm","kom",12,{"v":0,"d":"0.00"},{"v":0,"d":"0.00"}]
[null,"1.7 dimenzije 78 x 105 cm","kom",1,{"v":0,"d":"0.00"},{"v":0,"d":"0.00"}]
[null,"1.8 dimenzije 98 x 121 cm","kom",2,{"v":0,"d":"0.00"},{"v":0,"d":"0.00"}]
[null,"žaluzije 98 x 121 cm","kom",2,{"v":0,"d":"0.00"},{"v":0,"d":"0.00"}]
[null," 1.9 dimenzije 105 x 123 cm ","kom",2,{"v":0,"d":"0.00"},{"v":0,"d":"0.00"}]
[null,"žaluzije 105 x 123 cm","kom",2,{"v":0,"d":"0.00"},{"v":0,"d":"0.00"}]
[]
["7.2","KGA_Window_IJS_1x2"]
[null,"2.1 dimenzije 43 x 174 cm","kom",1,{"v":0,"d":"0.00"},{"$f":"D150*E150","v":{"v":0,"d":"0.00"}}]
[null,"2.2 dimenzije 65 x 207 cm ","kom",1,{"v":0,"d":"0.00"},{"v":0,"d":"0.00"}]
[null,"žaluzije 65 x 207 cm","kom",1,{"v":0,"d":"0.00"},{"v":0,"d":"0.00"}]
[null,"2.8 dimenzije 96 x 174 cm ","kom",7,{"v":0,"d":"0.00"},{"v":0,"d":"0.00"}]
[null,"žaluzije 94 x 174 cm","kom",7,{"v":0,"d":"0.00"},{"v":0,"d":"0.00"}]
[null,"2.9 dimenzije 96 x 276 cm ","kom",2,{"v":0,"d":"0.00"},{"v":0,"d":"0.00"}]
[null,"žaluzije 96 x 276 cm","kom",2,{"v":0,"d":"0.00"},{"v":0,"d":"0.00"}]
[null,"2.10 dimenzije 98 cm x 207 cm","kom",2,{"v":0,"d":"0.00"},{"v":0,"d":"0.00"}]
[null,"žaluzije 98 x 207 cm","kom",2,{"v":0,"d":"0.00"},{"v":0,"d":"0.00"}]
[null,"2.11 dimenzije 98 x 260 cm","kom",2,{"v":0,"d":"0.00"},{"v":0,"d":"0.00"}]
[null,"2.13 dimenzije 125 x 174 cm","kom",1,{"v":0,"d":"0.00"},{"v":0,"d":"0.00"}]
[null,"2.5 dimenzije 88 x 210 cm ","kom",1,{"v":0,"d":"0.00"},{"$f":"D161*E161","v":{"v":0,"d":"0.00"}}]
[null,"žaluzije 88 x 210 cm","kom",1,{"v":0,"d":"0.00"},{"$f":"D162*E162","v":{"v":0,"d":"0.00"}}]
[]
["7.3","KGA_Window_IJS_2x1"]
[null,"3.2 dimenzije 244 x 121 cm","kom",2,{"v":0,"d":"0.00"},{"$f":"D165*E165","v":{"v":0,"d":"0.00"}}]
[null,"žaluzije 244 x 121 cm","kom",2,{"v":0,"d":"0.00"},{"v":0,"d":"0.00"}]
[null,"3.5 dimenzije 205 x 140 cm","kom",2,{"v":0,"d":"0.00"},{"v":0,"d":"0.00"}]
[null,"žaluzije 205 x 140 cm","kom",2,{"v":0,"d":"0.00"},{"v":0,"d":"0.00"}]
[null,"3.6 dimenzije 208 x 208 cm","kom",1,{"v":0,"d":"0.00"},{"v":0,"d":"0.00"}]
[null,"žaluzije 208 x 208","kom",1,{"v":0,"d":"0.00"},{"v":0,"d":"0.00"}]
[]
["7.4","KGA_Window_IJS_2x2"]
[null,"4.4 dimenzije 173 x 172 cm ","kom",12,{"v":0,"d":"0.00"},{"$f":"D173*E173","v":{"v":0,"d":"0.00"}}]
[null,"žaluzije 173 x 172 cm","kom",12,{"v":0,"d":"0.00"},{"v":0,"d":"0.00"}]
[null,"4.5 dimenzije 173 x 207 cm ","kom",2,{"v":0,"d":"0.00"},{"v":0,"d":"0.00"}]
[null,"žaluzije 173 x 207 cm","kom",2,{"v":0,"d":"0.00"},{"v":0,"d":"0.00"}]
[null,"4.6 dimenzije 173 x 260 cm ","kom",2,{"v":0,"d":"0.00"},{"v":0,"d":"0.00"}]
[null,"žaluzije 173 x 260 cm","kom",2,{"v":0,"d":"0.00"},{"v":0,"d":"0.00"}]
[null,"4.7 dimenzije 182 x 258 cm ","kom",1,{"v":0,"d":"0.00"},{"v":0,"d":"0.00"}]
[null,"žaluzije 182 x 258 cm","kom",1,{"v":0,"d":"0.00"},{"v":0,"d":"0.00"}]
[null,"4.14B dimenzije 200 x 196 cm ","kom",2,{"v":0,"d":"0.00"},{"v":0,"d":"0.00"}]
[null,"žaluzije 200 x 196 cm","kom",2,{"v":0,"d":"0.00"},{"v":0,"d":"0.00"}]
[null,"4.15 dimenzije 203 x 207 cm ","kom",2,{"v":0,"d":"0.00"},{"v":0,"d":"0.00"}]
[null,"žaluzije 203 x 207 cm","kom",2,{"v":0,"d":"0.00"},{"v":0,"d":"0.00"}]
[null,"4.20 dimenzije 209 x 257 cm ","kom",1,{"v":0,"d":"0.00"},{"v":0,"d":"0.00"}]
[null,"žaluzije 209 x 257 cm","kom",1,{"v":0,"d":"0.00"},{"v":0,"d":"0.00"}]
[null,"4.23 dimenzije 209 x 210 cm","kom",1,{"v":0,"d":"0.00"},{"v":0,"d":"0.00"}]
[null,"žaluzije 209 x 210 cm","kom",1,{"v":0,"d":"0.00"},{"v":0,"d":"0.00"}]
[null,"4.24 dimenzije 202 x 203 cm ","kom",2,{"v":0,"d":"0.00"},{"v":0,"d":"0.00"}]
[null,"žaluzije 202 x 203 cm","kom",2,{"v":0,"d":"0.00"},{"v":0,"d":"0.00"}]
[null,"4.2 dimenzije 163 x 209 cm","kom",1,{"v":0,"d":"0.00"},{"v":0,"d":"0.00"}]
[null,"žaluzija 163 x 209 cm","kom",1,{"v":0,"d":"0.00"},{"v":0,"d":"0.00"}]
[]
["7.5","KGA_Window_IJS_3x2"]
[null,"6.2 dimenzije 315 x 200 cm ","kom",2,{"v":0,"d":"0.00"},{"$f":"D195*E195","v":{"v":0,"d":"0.00"}}]
[null,"žaluzije 315 x 200 cm","kom",2,{"v":0,"d":"0.00"},{"$f":"D196*E196","v":{"v":0,"d":"0.00"}}]
[]
["7.6","KGA_Window_IJS_4x1"]
[null,"7.6 dimenzije 454 x 121 cm ","kom",2,{"v":0,"d":"0.00"},{"$f":"D199*E199","v":{"v":0,"d":"0.00"}},"v sestavu požarna vrata"]
[null,"žaluzije 454 x 121 cm","kom",2,{"v":0,"d":"0.00"},{"v":0,"d":"0.00"}]
[]
["7.7","KGA_Window_IJS_4x2_z Balkonskimi vrati"]
[null,"8.1 dimenzije 440 x 355 cm","kom",1,{"v":0,"d":"0.00"},{"$f":"D203*E203","v":{"v":0,"d":"0.00"}}]
[]
["7.8","KGA_Window_IJS_POLKROZNO - streha,stopnišče"]
[null,"9.1 dimenzije 514 x 234 cm","kom",2,{"v":0,"d":"0.00"},{"$f":"D206*E206","v":{"v":0,"d":"0.00"}}]
[]
["7.9","KGA_Window_IJS_Balkonska vrata 1 - terasa VP"]
[null,"11.1 dimenzije 302 x 307 cm","kom",1,{"v":0,"d":"0.00"},{"$f":"D209*E209","v":{"v":0,"d":"0.00"}}]
[]
["7.10","KGA_Window_IJS_Balkonska vrata 2 - vhod stopnišče"]
[null,"12.1 dimenzije 413 x 227 cm","kom",1,{"v":0,"d":"0.00"},{"$f":"D212*E212","v":{"v":0,"d":"0.00"}}]
[null,"12.2 dimenzije 333 x 331 cm","kom",1,{"v":0,"d":"0.00"},{"v":0,"d":"0.00"}]
[null,"12.3 polkrožno dolžina 412 cm, višina 100 cm","kom",1,{"v":0,"d":"0.00"},{"v":0,"d":"0.00"}]
[null,"12.4 četrt kroga 92 x 133 cm","kom",2,{"v":0,"d":"0.00"},{"v":0,"d":"0.00"}]
[]
["7.11","KGA_Window_IJS_Stena stopnišča - vse fix"]
[null,"13.1 dimenzije 286 x 944 cm","kom",1,{"v":0,"d":"0.00"},{"$f":"D218*E218","v":{"v":0,"d":"0.00"}}]
[null,"13.2 dimenzije 272 x 227 cm","kom",1,{"v":0,"d":"0.00"},{"v":0,"d":"0.00"}]
[]
["7.12","KGA_Window_IJS_Balkonska vrata 3 - 1X2 -požarne stopnice"]
[null,"14.1 dimenzije 115 x 242 cm","kom",1,{"v":0,"d":"0.00"},{"$f":"D222*E222","v":{"v":0,"d":"0.00"}}]
[null,"14.1 dimenzije 95 x 230 cm","kom",1,{"v":0,"d":"0.00"},{"v":0,"d":"0.00"}]
[]
["7.13","KGA_Window_IJS_Balkonska vrata 4 - 4x2 - požarne stopnice"]
[null,"15.1 dimenzije 408 x 245 cm","kom",1,{"v":0,"d":"0.00"},{"$f":"D226*E226","v":{"v":0,"d":"0.00"}}]
[null,"žaluzije 408 x 245 cm","kom",1,{"v":0,"d":"0.00"},{"$f":"D227*E227","v":{"v":0,"d":"0.00"}}]
[]
["7.14","KGA_Window_IJS_Balkonska vrata 5 - 2X1 - ARNES",{"$nulls":4},"izvedba s protiptašno zaveso"]
[null,"16.1 dimenzije 240 x 231 cm ","kom",2,{"v":0,"d":"0.00"},{"$f":"D230*E230","v":{"v":0,"d":"0.00"}}]
[null,"žaluzije 240 x 231 cm","kom",2,{"v":0,"d":"0.00"},{"$f":"D231*E231","v":{"v":0,"d":"0.00"}}]
[]
["7.15","KGA_Window_IJS_3x2"]
[null,"6.1 dimenzije 230 x 237","kom",1,{"v":0,"d":"0.00"},{"$f":"D234*E234","v":{"v":0,"d":"0.00"}}]
[]
["7.16","KGA_Window_IJS_2x2_ z balkonskimi vratai"]
[null,"5.2 dimenzije 428 x 354 cm","kom",1,{"v":0,"d":"0.00"},{"$f":"D237*E237","v":{"v":0,"d":"0.00"}}]
[]
["7.17","KGA_Window_IJS_3x2"]
[null,"6.3 dimenzije 418 x 200 cm ","kom",1,{"v":0,"d":"0.00"},{"$f":"D240*E240","v":{"v":0,"d":"0.00"}},"v sestavu požarna vrata"]
[null,"žaluzija 418 x 200 cm","kom",1,{"v":0,"d":"0.00"},{"$f":"D241*E241","v":{"v":0,"d":"0.00"}}]
[]
[]
[]
[]
["8.","Dobava in vgradnja novih notranjih okenskih polic iz umetnega kamna debeline 2 cm,  širine do 40 cm ter  skupne dolžine po dejansko izvedenih delih"]
[null,null,"m1",180,{"v":0,"d":"0.00"},{"$f":"D247*E247","v":{"v":0,"d":"0.00"}}]
[]
["9.","Dobava in vgradnja zunanjih okenskih polic iz prašno barvanega aluminija v barvi oken r.š. do 20 cm. Količina po dejansko vgrajenih količinah. "]
[null,null,"m1",180,{"v":0,"d":"0.00"},{"$f":"D250*E250","v":{"v":0,"d":"0.00"}}]
[]
["10.","vhodna aula - prehod iz Jadranske ceste"]
[]
["10.1","okenski sestav vhodne aule ALU "]
[null,"1 dimenzije 304 x 291 cm","kom",4,{"v":0,"d":"0.00"},{"$f":"+D255*E255","v":{"v":0,"d":"0.00"}}]
[null,"2 dimenzije 304 x 97 cm","kom",4,{"v":0,"d":"0.00"},{"$f":"+D256*E256","v":{"v":0,"d":"0.00"}}]
[]
["10.2","avtomatska steklena vrata v sestavu"]
[null,"1 dimenzije 304 x 205 cm","kom",4,{"v":0,"d":"0.00"},{"$f":"+D259*E259","v":{"v":0,"d":"0.00"}}]
[]
["10.3","okenski okvir s polnilom"]
[null,"1 dimenzije 192 x 93 cm","kom",1,{"v":0,"d":"0.00"},{"$f":"+D262*E262","v":{"v":0,"d":"0.00"}}]
[]
["11.","Obnova oken z zunanje strani"]
[null,"Pleskanje zunanjih površin lesenih okenskih kril in podbojev, s predhodnim čiščenjem, grobim in finim brušenjem ter odstranitvijo razpokane obstoječe zaščite lesa. Dvakratno pleskanje lesenih oken na predhodno pripravljeno podlago s kitanjem in osnovnim premazom. Barva za zaščito lesa v beli barvi, ali barvi po izbiri naročnika. V ceni upoštevati tudi sanacijo stika steklo les (stičenje z UV odpornim kitom) ter vse potrebne pomične odre, dvigala in podobno. "]
[null,"4.16 dimenzije 204 x 195 cm","kom",11,{"v":0,"d":"0.00"},{"$f":"D266*E266","v":{"v":0,"d":"0.00"}},"sanacija okna samo z zunanje strani"]
[null,"žaluzije 204 x 195 cm","kom",11,{"v":0,"d":"0.00"},{"$f":"D267*E267","v":{"v":0,"d":"0.00"}},"menjava žaluzij z zunanje strani"]
[]
[]
[null,"Skupaj objekt C: ",{"$nulls":3},{"$f":"SUM(F19:F267)","v":{"v":0,"d":"0.00"}}]
[]
[]
[]
["B: ","Objekt D"]
[]
[]
["1. ","Demontaža obstoječih lesenih, PVC, Alu ali Alu clip oken in vrat z zunanjimi žaluzijami z vsemi potrebnimi deli, transporti ter odvozov v stalni depo skladno po Uredbi z ravnanji z gradbenimi odpadki, plačili taks za prevzem in predelavo."]
[null,null,"kom",58,{"v":0,"d":"0.00"},{"$f":"D278*E278","v":{"v":0,"d":"0.00"}}]
[]
[]
["2.","Demontaža notranjih okenskih polic širine do 30 cm, dolžine od 60 do 210 cm z vsemi potrebnimi deli, transporti ter odvozov v stalni depo skladno po Uredbi z ravnanji z gradbenimi odpadki, plačili taks za prevzem in predelavo. Ocenjena količina 30 %."]
[null,null,"kom",58,{"v":0,"d":"0.00"},{"$f":"D282*E282","v":{"v":0,"d":"0.00"}}]
[]
["3.","Demontaža zunanjih okenskih polic širine do 20 cm  dolžine od 60 do 210 cm z vsemi potrebnimi deli, transporti ter odvozov v stalni depo skladno po Uredbi z ravnanji z gradbenimi odpadki, plačili taks za prevzem in predelavo. Ocenjena količina 30 %."]
[null,null,"kom",58,{"v":0,"d":"0.00"},{"$f":"D285*E285","v":{"v":0,"d":"0.00"}}]
[]
["4.","Dobava in montaža ALU CLIP oken bele ali svetlo sive barve po izboru naročnika. Minimalno število komor v okvirju in krilu 6 ali več visoke statične stabilnosti in toplotne izolativnosti. Zasteklitev iz troslojnega toplotno izolacijskega stekla z nizkoemisijskim nanosom in toplotno izolacijskim distančnikom. Tesnenje med okenskim okvirjem in krilom minimalno  tremi trajno elastičnimi fiksno vpetimi in stikoma varjenimi  tenili. Enoročna manipulacija skritega okovja mora omogočati odpiranje po vertikalni in horizontalni osi skladno po shemah. Okovje protivlomno z večtočkovnim zapiranjem in pollolivo v barvi oken. Okna tipa 2x1, 2x2 in 3x2 imajo med okenskimi okvirji termoizolacijski panel (masko) iz identičnega materiala in karakteristik kot okenski okvir ali krila."]
[null,"Izolativnost oken UW = 0,9 W/m2/K ali manj. "]
[null,"Toplotna prehodnost stekla Ug = 0,6 W/m2/K ali manj. "]
[null,"Zvočna izolativnost okna RW = 35 dB ali več ."]
[null,"Pri postavki posameznega tipa okna kjer je navedeno je potrebno dobaviti in vgraditi zunanje žaluzije kompletno z vodili, masko in notranjim ročnim mehnizmom za upravljanje. Barva zunanjih žaluzij v RALu kot obstoječe oziroma po potrditvi naročnika."]
[]
["4.1","D1 Okno 1x1 Delavnice"]
[null,"D1.1 dimenzije 63 x 82 cm ","kom",2,{"v":0,"d":"0.00"},{"$f":"D294*E294","v":{"v":0,"d":"0.00"}}]
[]
["4.2","D2 Okno 2x1 Delavnice"]
[null,"D2.1 dimenzije 175 x 129 cm","kom",1,{"v":0,"d":"0.00"},{"$f":"D297*E297","v":{"v":0,"d":"0.00"}}]
[null,"žaluzije 175 x 129 cm","kom",1,{"v":0,"d":"0.00"},{"v":0,"d":"0.00"}]
[null,"D2.2  dimenzije 314 x 161 cm ","kom",1,{"v":0,"d":"0.00"},{"v":0,"d":"0.00"}]
[null,"žaluzije 314 x 161 cm","kom",1,{"v":0,"d":"0.00"},{"v":0,"d":"0.00"}]
[]
["4.3","D3 Okno 2x2x Delavnice"]
[null,"D3.1 dimenzije 208 x 201  cm","kom",5,{"v":0,"d":"0.00"},{"$f":"D303*E303","v":{"v":0,"d":"0.00"}}]
[null,"žaluzija 208 x 201 cm","kom",5,{"v":0,"d":"0.00"},{"v":0,"d":"0.00"}]
[null,"D3.2 dimenzije 208 x 201 cm","kom",4,{"v":0,"d":"0.00"},{"v":0,"d":"0.00"}]
[null,"D3.2 dimenzije 208 x 201 cm (Okni imata prezračevalni niši v zgornjem delu)","kom",2,{"v":0,"d":"0.00"},{"v":0,"d":"0.00"},"prezračevalna niša"]
[null,"D3.3 dimenzije 201 x 152 cm (Prostor je 50% zastekljen, 50% reža za pretok zraka)","kom",1,{"v":0,"d":"0.00"},{"v":0,"d":"0.00"},"prezračevanje"]
[]
["4.4","D4 Okno 4X2 Delavnice "]
[null,"D4.1 dimenzije 364 x 211 cm","kom",1,{"v":0,"d":"0.00"},{"$f":"D310*E310","v":{"v":0,"d":"0.00"}}]
[null,"žaluzije 364 x 211 cm","kom",1,{"v":0,"d":"0.00"},{"v":0,"d":"0.00"}]
[null,"D4.2 dimenzije 358 X 209 cm","kom",1,{"v":0,"d":"0.00"},{"v":0,"d":"0.00"}]
[null,"D4.3 DIMENZIJE 369 X 210 cm","kom",1,{"v":0,"d":"0.00"},{"v":0,"d":"0.00"}]
[]
[]
["5.","Dobava in montaža ALU  okenskih sten z vrati bele ali svetlo sive barve po izboru naročnika. Okvirji in krila z vstavljenim dodatnim izolacijskim materialom ter prekinjenim toplotnim členom. Zasteklitev iz troslojnega toplotno izolacijskega stekla z nizkoemisijskim nanosom in toplotno izolacijskim distančnikom. Tesnenje med okenskim okvirjem in krilom minimalno  tremi trajno elastičnimi fiksno vpetimi in stikoma varjenimi  tenili. Enoročna manipulacija skritega okovja mora omogočati odpiranje po vertikalni in horizontalni osi skladno po shemah. Okovje protivlomno z večtočkovnim zapiranjem in pollolivo v barvi oken. Okna tipa 2x1, 2x2 in 3x2 imajo med okenskimi okvirji termoizolacijski panel (masko) iz identičnega materiala in karakteristik kot okenski okvir ali krila."]
[null,"Izolativnost oken UW = 1,0 W/m2/K ali manj. "]
[null,"Toplotna prehodnost stekla Ug = 0,6 W/m2/K ali manj. "]
[null,"Zvočna izolativnost okna RW = 35 dB ali več ."]
[null,"Pri postavki posameznega tipa okna kjer je navedeno je potrebno dobaviti in vgraditi zunanje žaluzije kompletno z vodili, masko in notranjim ročnim mehnizmom za upravljanje. Barva zunanjih žaluzij v RALu kot obstoječe oziroma po potrditvi naročnika."]
[]
["5.1","Vhodna vrata 2x2 Delavnice"]
[null,"5.1 dimenzije 198 x 337 - vrata samozpiralo","kom",1,{"v":0,"d":"0.00"},{"$f":"D323*E323","v":{"v":0,"d":"0.00"}}]
[]
["5.2","Vhodna vrata 3x2 Delavnice"]
[null,"D6.1 dimenzije 356 x 292 cm, vrta samozapiralo","kom",1,{"v":0,"d":"0.00"},{"$f":"D326*E326","v":{"v":0,"d":"0.00"}}]
[null,"žaluzije 356 x 292 cm","kom",1,{"v":0,"d":"0.00"},{"v":0,"d":"0.00"}]
[null,"D6.2 dimenzije 365 x 301 cm","kom",1,{"v":0,"d":"0.00"},{"v":0,"d":"0.00"}]
[]
["5.3","Notranji vetrolov z vhodom 4x2 Delavnice"]
[null,"7.1 dimenzije 342 x 327 vrata samozapiralo","kom",1,{"v":0,"d":"0.00"},{"$f":"D331*E331","v":{"v":0,"d":"0.00"}}]
[]
["5.4","Okno 5x2 Delavnice - steklena kupola"]
[null,"D8.1 dimenzije 240 x 191 cm","kom",6,{"v":0,"d":"0.00"},{"$f":"D334*E334","v":{"v":0,"d":"0.00"}}]
[null,"žaluzije 240 x 191 cm","kom",6,{"v":0,"d":"0.00"},{"v":0,"d":"0.00"}]
[null,"D8.2 dimenzije 268 x 191 cm","kom",2,{"v":0,"d":"0.00"},{"v":0,"d":"0.00"}]
[null,"žaluzije 268 x 191 cm","kom",2,{"v":0,"d":"0.00"},{"v":0,"d":"0.00"}]
[null,"D8.3 dimenzije 240 x 191 cm","kom",6,{"v":0,"d":"0.00"},{"v":0,"d":"0.00"}]
[null,"D8.4 dimenzije 268 x 191 cm","kom",2,{"v":0,"d":"0.00"},{"v":0,"d":"0.00"}]
[]
["5.5","Okno 5x1 Delavnice - steklena kupola"]
[null,"D9.1 dimenzije 240 x 95 cm","kom",3,{"v":0,"d":"0.00"},{"$f":"D342*E342","v":{"v":0,"d":"0.00"}}]
[null,"žaluzije na elektro pogon 240 x 95 cm","kom",3,{"v":0,"d":"0.00"},{"v":0,"d":"0.00"}]
[null,"D9.2 dimenzije 268 x 95 cm","kom",1,{"v":0,"d":"0.00"},{"v":0,"d":"0.00"}]
[null,"žaluzije na elektro pogon 268 x 95 cm","kom",1,{"v":0,"d":"0.00"},{"v":0,"d":"0.00"}]
[]
["5.6","Okno 8x2 Delavnice - steklena kupola"]
[null,"D10.1 dimenzije 425 X 191 cm","kom",4,{"v":0,"d":"0.00"},{"$f":"D348*E348","v":{"v":0,"d":"0.00"}}]
[null,"žaluzije na elektro pogon 425 x 191 cm","kom",4,{"v":0,"d":"0.00"},{"v":0,"d":"0.00"}]
[null,"D10.2 dimenzije 430 X 191 cm ","kom",4,{"v":0,"d":"0.00"},{"v":0,"d":"0.00"}]
[null,"žaluzije na elektro pogon 430 x 191 cm","kom",4,{"v":0,"d":"0.00"},{"v":0,"d":"0.00"}]
[]
["5.7","Okno - vhod 1x3 Delavnice "]
[null,"D11.1 dimenzije 78 x 309","kom",1,{"v":0,"d":"0.00"},{"$f":"D354*E354","v":{"v":0,"d":"0.00"}}]
[null,"D11.2 dimenzije 80 x 309","kom",1,{"v":0,"d":"0.00"},{"v":0,"d":"0.00"}]
[null,"D11.3 dimenzije 108 x 309","kom",1,{"v":0,"d":"0.00"},{"v":0,"d":"0.00"}]
[null,"D11.4 dimenzije 135 x 309","kom",1,{"v":0,"d":"0.00"},{"v":0,"d":"0.00"}]
[]
["5.8","Vhod - vrata 1x1"]
[null,"D12.1 dimenzije 54 x 227  nezastekljeno polno krilo","kom",1,{"v":0,"d":"0.00"},{"$f":"D360*E360","v":{"v":0,"d":"0.00"}}]
[null,"D12.2 dimenzije 107 x 227 nezastekljeno polno krilo","kom",1,{"v":0,"d":"0.00"},{"v":0,"d":"0.00"}]
[null,"D12.3 dimenzije 149 x 215 nezastekljeno polno krilo elektr. Ključavnica","kom",1,{"v":0,"d":"0.00"},{"v":0,"d":"0.00"},"deljeno na fiksni del z možnostjo odpiranja in vrata"]
[]
[]
["6.","Dobava in vgradnja novih notranjih okenskih polic iz umetnega kamna debeline 2 cm,  širine do 30 cm ter dolžine :"]
[null,"66 cm","kom",2,{"v":0,"d":"0.00"},{"$f":"D366*E366","v":{"v":0,"d":"0.00"}}]
[null,"177 cm","kom",1,{"v":0,"d":"0.00"},{"v":0,"d":"0.00"}]
[null,"203 cm","kom",2,{"v":0,"d":"0.00"},{"v":0,"d":"0.00"}]
[null,"210 cm","kom",11,{"v":0,"d":"0.00"},{"v":0,"d":"0.00"}]
[null,"317 cm","kom",1,{"v":0,"d":"0.00"},{"v":0,"d":"0.00"}]
[null,"360 cm","kom",1,{"v":0,"d":"0.00"},{"v":0,"d":"0.00"}]
[null,"367 cm","kom",1,{"v":0,"d":"0.00"},{"v":0,"d":"0.00"}]
[]
["7.","Dobava in vgradnja zunanjih okenskih polic iz prašno barvanega aluminija v barvi oken r.š. do 20 cm "]
[]
[null,"66 cm","kom",2,{"v":0,"d":"0.00"},{"$f":"D376*E376","v":{"v":0,"d":"0.00"}}]
[null,"177 cm","kom",1,{"v":0,"d":"0.00"},{"v":0,"d":"0.00"}]
[null,"203 cm","kom",2,{"v":0,"d":"0.00"},{"v":0,"d":"0.00"}]
[null,"210 cm","kom",11,{"v":0,"d":"0.00"},{"v":0,"d":"0.00"}]
[null,"317 cm","kom",1,{"v":0,"d":"0.00"},{"v":0,"d":"0.00"}]
[null,"360 cm","kom",1,{"v":0,"d":"0.00"},{"v":0,"d":"0.00"}]
[null,"367 cm","kom",1,{"v":0,"d":"0.00"},{"v":0,"d":"0.00"}]
[]
[null,"Skupaj objekt D: ",{"$nulls":3},{"$f":"SUM(F278:F382)","v":{"v":0,"d":"0.00"}}]
[]
[]
[]
[null,"Rekapitulacija "]
[]
["A:","Objekt C",{"$nulls":3},{"$f":"F270","v":{"v":0,"d":"0.00"}}]
["B:","Objekt D",{"$nulls":3},{"$f":"F384","v":{"v":0,"d":"0.00"}}]
[]
[null,"SKUPAJ : ",{"$nulls":3},{"$f":"SUM(F390:F391)","v":{"v":0,"d":"0.00"}}]